Cogmind - Beta 14 @@@ ROGUE MODE // 2024.09.01 @ 23:59:29 Player: star Result: Destroyed by Y-45 Defender with Beam Rifle Performance ------------- Evolutions (0) 0 Regions Visited (4) 800 Robots Destroyed (22) 110 Value Destroyed (498) 498 Prototype IDs (3) 60 Alien Tech Used (0) 0 Bonus (0) 0 TOTAL SCORE: 1468 Bonus ------- None Cogmind --------- Core Integrity 0/250 Matter 253/300 Energy 18/100 System Corruption 0% Temperature Warm (113) Movement Rolling (100) Location -9/Recycling Parts ------- > --- POWER (1) -------- Subdweller Power Source > --- PROPULSION (2) --- Armored Wheel Subdweller Monowheel > --- UTILITY (2) ------ Disposable Heat Sink Small Storage Unit > --- WEAPON (2) ------- Spread Laser Spread Laser > --- INVENTORY (8) ---- Subdweller Monowheel Medium Matter Pod (100) EM Pulse Gun Light Assault Rifle Battle Cannon Grenade Launcher Grenade Launcher Subdweller Shrapnel Launcher Peak State ------------ > --- POWER ------------ Subdweller Power Source > --- PROPULSION ------- Armored Wheel Subdweller Monowheel > --- UTILITY ---------- Small Storage Unit Subdweller Optics > --- WEAPON ----------- Particle Gun Particle Gun > --- INVENTORY -------- Subdweller Monowheel Medium Matter Pod EM Pulse Gun Light Assault Rifle Battle Cannon Grenade Launcher Grenade Launcher Subdweller Shrapnel Launcher [Rating: 14] Favorites ----------- Power Light Ion Engine Engine Light Ion Engine Propulsion Light Treads Treads Light Treads Wheel Subdweller Monowheel Utility Small Storage Unit Device Subdweller Optics Storage Small Storage Unit Weapon Light Assault Rifle Energy Gun Medium Laser Ballistic Gun Light Assault Rifle Ballistic Cannon Battle Cannon Launcher Grenade Launcher Special Weapon Flamer Build | -11 -10 -10 -10 -9 ------- Run | Yrd Mat Min Sub Rec Slots Evolved . | . . . . . Power . | . . . . . Propulsion . | . . . . . Utility . | . . . . . Weapon . | . . . . . Parts Attached 26 | 5 . 1 14 6 Power 2 | 1 . . 1 . Engine 2 | 1 . . 1 . Core . | . . . . . Reactor . | . . . . . Propulsion 4 | 1 . . 2 1 Treads 1 | 1 . . . . Leg . | . . . . . Wheel 3 | . . . 2 1 Hover . | . . . . . Flight . | . . . . . Utility 3 | 1 . . 1 1 Device 2 | . . . 1 1 Storage 1 | 1 . . . . Processor . | . . . . . Hackware . | . . . . . Protection . | . . . . . Artifact . | . . . . . Weapon 17 | 2 . 1 10 4 Energy Gun 10 | 1 . . 5 4 Energy Cannon . | . . . . . Ballistic Gun 2 | 1 . . 1 . Ballistic Cannon 1 | . . . 1 . Launcher 3 | . . 1 2 . Special Weapon 1 | . . . 1 . Impact Weapon . | . . . . . Slashing Weapon . | . . . . . Piercing Weapon . | . . . . . Special Melee Weapon . | . . . . . Unidentified Prototypes . | . . . . . Parts Lost 3 | . . . 3 . Power 1 | . . . 1 . Propulsion 1 | . . . 1 . Utility . | . . . . . Weapon 1 | . . . 1 . Highest Loss Streak 1 | . . . 1 . To Critical Strikes . | . . . . . Average Slot Usage (%) 81 | . 71 71 79 100 Engine 10 | . 14 14 3 14 Treads 9 | . 14 14 11 . Wheel 11 | . . . 11 28 Device 7 | . . . 10 14 Storage 14 | . 14 14 14 14 Energy Gun 13 | . 14 5 16 16 Ballistic Gun 6 | . 14 14 1 . Ballistic Cannon 2 | . . . 7 . Launcher 6 | . . 8 1 11 Peak Build Rating 14 | 5 5 5 12 14 Average Rating 8 | 4 5 5 7 13 On Entrance 5 | . 5 5 5 12 Naked Turns . | . . . . . Heaviest Build 23 | 11 11 12 23 23 Greatest Support 40 | 20 20 20 40 40 Greatest Overweight (x) 3 | 3 . . . . Average Overweight (x) . | . . . . . Largest Inventory Capacity 8 | 8 8 8 8 8 Average Capacity 7 | 7 8 8 8 8 Most Carried 8 | . 5 5 7 8 Average Carried 5 | . 2 5 6 7 Final Capacity 8 | 8 8 8 8 8 Final Carried 8 | . 5 5 7 8 Class Distribution -------------------- 100% | Mutant Dominant Class ---------------- Mutant | -10/Materials Mutant | -10/Mines Mutant | -10/Subcaves Mutant | -9/Recycling Resources | -11 -10 -10 -10 -9 ----------- Run | Yrd Mat Min Sub Rec Matter Collected 745 | 178 . 101 283 183 Remotely . | . . . . . Salvage Created 550 | . . 130 173 247 Parts 42 | . . 16 14 12 Haulers Intercepted . | . . . . . Recyclers Shooed 3 | . . . . 3 Parts Field Recycled . | . . . . . Retrieved Matter . | . . . . . Parts Self-Destructed 8 | . . . 8 . Prevented . | . . . . . Kills | -11 -10 -10 -10 -9 ------- Run | Yrd Mat Min Sub Rec Combat Hostiles Destroyed 17 | . . 8 8 1 Guns 3 | . . 1 2 . Cannons 1 | . . . 1 . AOE 13 | . . 7 5 1 Classes Destroyed 7 | . . 3 1 3 Worker 1 | . . 1 . . Builder 3 | . . . . 3 Recycler 1 | . . . . 1 Swarmer 7 | . . 6 1 . Grunt 2 | . . 2 . . Sentry 1 | . . . . 1 Subdweller 7 | . . . 7 . Best Kill Streak 5 | . . 4 5 2 Combat Bots Only 5 | . . 3 5 1 Max Kills in Single Turn 3 | . . 2 3 1 Gunslinging . | . . . . . Exploded 3 | . . 2 3 1 Melee . | . . . . . Uniques/NPCs Destroyed . | . . . . . Combat | -11 -10 -10 -10 -9 -------- Run | Yrd Mat Min Sub Rec Hostile Shots Fired 90 | . . 28 59 3 Missed 29 | . . 6 23 . Damage Taken 778 | . 20 201 511 46 Core 263 | . 10 76 145 32 Absorbed by Shields . | . . . . . Core Remaining (%) 100 | 100 . . . . Volleys Fired 51 | . 2 14 22 13 Largest 2 | . 2 2 2 2 Hottest 150 | . 60 60 150 130 Shots Fired 98 | . 4 26 42 26 Gun 77 | . 4 20 29 24 Cannon 4 | . . . 4 . Launcher 16 | . . 6 8 2 Special 1 | . . . 1 . Kinetic 32 | . 2 14 15 1 Thermal 47 | . . . 23 24 Explosive 11 | . . 6 4 1 Electromagnetic 8 | . 2 6 . . Robot Hit Streak 11 | . 2 3 11 6 Robot Miss Streak 5 | . 2 3 3 5 Penetration Max . | . . . . . Secondary Targets . | . . . . . Shots Hit Robots 58 | . 2 8 27 21 Core Hits 48 | . 1 12 16 19 Critical Kills . | . . . . . Critical Parts Destroyed . | . . . . . Critical Strikes 1 | . . . 1 . Burn 1 | . . . 1 . Melee Attacks . | . . . . . Impact . | . . . . . Slashing . | . . . . . Piercing . | . . . . . Sneak Attacks . | . . . . . Combat Hostiles . | . . . . . Follow-up Attacks . | . . . . . Damage Inflicted 1686 | . 26 531 799 330 Guns 687 | . 26 114 258 289 Cannons 51 | . . . 51 . Explosions 929 | . . 408 480 41 Melee . | . . . . . Ramming 9 | . . 9 . . Kinetic 465 | . 8 47 396 14 Thermal 531 | . . 33 209 289 Explosive 596 | . . 375 194 27 Electromagnetic 85 | . 18 67 . . Impact . | . . . . . Slashing . | . . . . . Piercing . | . . . . . Highest Corruption . | . . . . . Average Corruption . | . . . . . Corruption Purged . | . . . . . Corruption Blocked . | . . . . . Overload Shots . | . . . . . Overflow Damage 45 | . . 45 . . Projectiles . | . . . . . Explosions 45 | . . 45 . . Melee . | . . . . . Knockbacks 1 | . . . 1 . Impact . | . . . . . Kinetic 1 | . . . 1 . Secondary . | . . . . . Self-Inflicted Damage . | . . . . . Shots . | . . . . . Rammed 3 | . . 3 . . Targets Rammed 3 | . . 3 . . Kicked . | . . . . . Crushed . | . . . . . Highest Temperature 216 | . 20 85 . 216 Average Temperature 66 | . 12 35 . 88 Received Heat Transfer 213 | . . 51 144 18 Siege Activations . | . . . . . Robots Corrupted . | . . . . . Combat Hostiles . | . . . . . Parts Fried . | . . . . . Impact Corruptions . | . . . . . Robots Melted . | . . . . . Combat Hostiles . | . . . . . Parts Melted . | . . . . . Heat Transferred 1307 | . . 50 746 511 Parts Sabotaged . | . . . . . Parts Stolen . | . . . . . Parts Stripped . | . . . . . Power Chain Reactions 1 | . . 1 . . Alert | -11 -10 -10 -10 -9 ------- Run | Yrd Mat Min Sub Rec Peak Influence 237 | . 24 237 . 79 Initial 31 | . . 9 . 31 Average 63 | . 16 119 . 50 Maximum Alert Level 1 | . . 1 . . Low Security (%) 91 | 100 100 76 . 100 Level 1 8 | . . 23 . . Level 2 . | . . . . . Level 3 . | . . . . . Level 4 . | . . . . . Level 5 . | . . . . . High Security . | . . . . . Max Security . | . . . . . Squads Dispatched 1 | . 1 . . . Investigation . | . . . . . Extermination . | . . . . . Reinforcement 1 | . 1 . . . Assault . | . . . . . Garrison . | . . . . . Intercept . | . . . . . Searches Triggered . | . . . . . Construction Impeded . | . . . . . Haulers Reinforced . | . . . . . Active Scanning Responses . | . . . . . Cargo Convoy Interrupts . | . . . . . Stealth | -11 -10 -10 -10 -9 --------- Run | Yrd Mat Min Sub Rec Distress Signals 1 | . . . . 1 Communications Jammed . | . . . . . Distress Signals . | . . . . . Times Spotted 25 | . 2 8 13 2 Peak Tracking Total 5 | . 1 3 5 1 Tactical Retreats 1 | . . . 1 . Traps | -11 -10 -10 -10 -9 ------- Run | Yrd Mat Min Sub Rec Traps Triggered 1 | . 1 . . . Indirectly . | . . . . . Trap Hack Attempts . | . . . . . Triggered . | . . . . . Disarmed . | . . . . . Reprogrammed . | . . . . . Reused . | . . . . . Traps Extracted . | . . . . . Installed . | . . . . . Triggered . | . . . . . Machines | -11 -10 -10 -10 -9 ---------- Run | Yrd Mat Min Sub Rec Machines Disabled . | . . . . . Max in Single Turn . | . . . . . Machines Repaired . | . . . . . Machines Dismantled . | . . . . . Machines Sabotaged . | . . . . . Overloaded Fab Kills . | . . . . . Hacking | -11 -10 -10 -10 -9 --------- Run | Yrd Mat Min Sub Rec Machines Accessed 4 | . 3 . . 1 Terminals 4 | . 3 . . 1 Fabricators . | . . . . . Repair Stations . | . . . . . Recycling Units . | . . . . . Scanalyzers . | . . . . . Garrison Access . | . . . . . Total Hacks 9 | . 8 . . 1 Successful 7 | . 6 . . 1 Failed 2 | . 2 . . . Catastrophic . | . . . . . Database Lockouts . | . . . . . Manual 7 | . 7 . . . Terminals 9 | . 8 . . 1 Fabricators . | . . . . . Repair Stations . | . . . . . Recycling Units . | . . . . . Scanalyzers . | . . . . . Garrison Access . | . . . . . Terminal Hacks 2 | . 1 . . 1 Robot Analysis 1 | . 1 . . . Prototype ID Bank 1 | . . . . 1 Fabricator Hacks . | . . . . . Repair Station Hacks . | . . . . . Recycling Unit Hacks . | . . . . . Scanalyzer . | . . . . . Garrison Access Hacks . | . . . . . Unauthorized Hacks 5 | . 5 . . . Terminals 5 | . 5 . . . Botnet 2 | . 2 . . . Skim 3 | . 3 . . . Fabricators . | . . . . . Repair Stations . | . . . . . Recycling Units . | . . . . . Scanalyzers . | . . . . . Garrison Access . | . . . . . Data Cores Recovered . | . . . . . Used . | . . . . . Hacking Detections 3 | . 2 . . 1 Full Trace Events . | . . . . . Feedback Events . | . . . . . Feedback Blocked . | . . . . . Robot Schematics Acquired . | . . . . . Robots Built . | . . . . . Authchips . | . . . . . Time . | . . . . . Total Robot Build Rating . | . . . . . Part Schematics Acquired . | . . . . . Parts Built . | . . . . . Authchips . | . . . . . Time . | . . . . . Total Part Build Rating . | . . . . . Parts Repaired . | . . . . . Time . | . . . . . Parts Recycled . | . . . . . Recycled Matter . | . . . . . Retrieved Matter . | . . . . . Retrieved Components . | . . . . . Parts Scanalyzed . | . . . . . Part Schematics Acquired . | . . . . . Parts Damaged . | . . . . . Bothacking | -11 -10 -10 -10 -9 ------------ Run | Yrd Mat Min Sub Rec Used RIF Installer . | . . . . . Robots Hacked . | . . . . . Non-combat . | . . . . . Combat . | . . . . . Robot Hacks Applied . | . . . . . Relay Couplers Released . | . . . . . Fabnet Peak Effective % . | . . . . . Robots Rewired . | . . . . . Allies Hacked . | . . . . . Hacks Repelled . | . . . . . Allies | -11 -10 -10 -10 -9 -------- Run | Yrd Mat Min Sub Rec Total Allies . | . . . . . Largest Group . | . . . . . Highest-Rated Group . | . . . . . Highest-Rated Ally . | . . . . . Total Orders . | . . . . . Ally Attacks . | . . . . . Total Damage . | . . . . . Kills . | . . . . . Allies Corrupted . | . . . . . Allies Melted . | . . . . . Intel | -11 -10 -10 -10 -9 ------- Run | Yrd Mat Min Sub Rec Robot Analysis Total 1 | . 1 . . . Derelict Logs Recovered 2 | . . 2 . . Drone Launches . | . . . . . Drone Recoveries . | . . . . . Exploration | -11 -10 -10 -10 -9 ------------- Run | Yrd Mat Min Sub Rec Turns Passed 1657 | 72 268 412 448 457 Spaces Moved 1098 | 44 161 215 276 402 Core 15 | 15 . . . . Treads 461 | 29 161 215 56 . Legs . | . . . . . Wheels 622 | . . . 220 402 Hover . | . . . . . Flight . | . . . . . Fastest Speed 50 | 50 160 160 110 100 Average Speed 127 | 148 160 160 120 100 Slowest Speed 200 | 200 160 160 160 110 Overloaded Moves . | . . . . . Propulsion Burnouts . | . . . . . Robots Hopped . | . . . . . Cave-ins Triggered . | . . . . . Exploration Rate (%) 36 | 3 34 42 29 73 Regions Visited 4 Branch Regions 3 Pre-discovered Areas 1 | . . . 1 . Known Exits Taken . | . . . . . Unknown Exits Taken 4 | 1 1 1 1 . Scrap Searched 6 | . . . 6 . Spaces Dug . | . . . . . Terrain Destroyed 150 | . . 47 77 26 Melee . | . . . . . Projectile . | . . . . . AOE 150 | . . 47 77 26 Terrain Rammed . | . . . . . Walls Destroyed . | . . . . . Machines Disabled . | . . . . . Actions | -11 -10 -10 -10 -9 --------- Run | Yrd Mat Min Sub Rec Total 1247 | 48 168 258 344 429 Wait 61 | . 1 26 31 3 Move 1094 | 43 160 214 275 402 Hop . | . . . . . Pick Up 9 | . 5 . 2 2 Fast Attach 9 | 5 . . 4 . Attach 1 | . . . 1 . Detach . | . . . . . Swap 16 | . . 1 9 6 Drop 3 | . . . . 3 Fire 51 | . 2 14 22 13 Melee . | . . . . . Ram . | . . . . . Kick . | . . . . . Crush 3 | . . 3 . . Escape Stasis . | . . . . . Rewire . | . . . . . Trap . | . . . . . Miscellaneous . | . . . . . Route ------- -11/Scrapyard -10/Materials -10/Mines (discovered 2 exits: [*Mat] / [*Sub]) -10/Subcaves -9/Recycling (discovered 1 exit: [*Fac]) History --------- Turn | Location | Event 9 | -11/Scrapyard | Discovered new exit (range 16) 73 | -11/Scrapyard | Entered Materials 200 | -10/Materials | Discovered new exit (range 16) 302 | -10/Materials | Build established: Mutant 341 | -10/Materials | Entered Mines 476 | -10/Mines | Learned 2 Materials zone layouts 656 | -10/Mines | Discovered new exit (range 10) 677 | -10/Mines | Learned 2 Materials zone layouts 750 | -10/Mines | Discovered new exit (range 3) 753 | -10/Mines | Entered Subcaves 789 | -10/Subcaves | Disturbed a concealed Subdweller 849 | -10/Subcaves | Core integrity fell below 50% 926 | -10/Subcaves | A swath of the cavern ceiling suddenly collapsed 1023 | -10/Subcaves | Learned location of Zion (-6) 1023 | -10/Subcaves | Met a Zionite searching for "candidates" 1120 | -10/Subcaves | Core integrity fell below 20% 1191 | -10/Subcaves | Discovered new exit (range 10) 1201 | -10/Subcaves | Entered Recycling 1614 | -9/Recycling | Discovered new exit (range 16) 1658 | -9/Recycling | Destroyed by Y-45 Defender with Beam Rifle Last Messages --------------- 01597_ R-06 Scavenger collects Com. Wheel. 01597_ R-06 Scavenger collects Lgt. Ion Engine. 01608_ Dropped Particle Gun. 01610_ Acquired Spread Laser. 01614_ EXIT=FOUND 01617_ Connecting with Terminal... 01617_ Current location identified: Recycling >>Prototypes Downloading prototype IDs... Aerolev Unit Adv. EMP Blaster Imp. Medium Laser 01619_ R-06 Scavenger collects Particle Gun. 01620_ U-05 Engineer destroyed. 01622_ R-06 Scavenger collects Lgt. Ion Engine. 01626_ R-06 Scavenger collects Terrain Scan Processor. 01627_ R-06 Scavenger collects Terrain Scanner. 01642_ R-06 Scavenger destroyed. 01648_ R-06 Scavenger sends out distress signal. 01657_ R-06 Scavenger collects Sml. Storage Unit. Map ----- +----------------------------------------------------+ | ????????????????# !!! # %#??????????????????? | | ????????????????# ??# #??????????????????? | | ????????????????# ! ????# #??????????????????? | | ????????????????# !??????# #??????????????????? | | ????????????????##????????# #??????????????????? | | ??????????????????????????# #??????????????????? | | ??????????????????????????# #??????????????????? | | ??????????????????????????# #??????????????????? | | ??????????????????????????# ###????????????????? | | ??????????????????????????# [#????????????????? | | ??????????????????????????# [#????????????????? | | ??????????????????????????# [#????????????????? | | ??????????????????????????# %###????????????????? | | ??????????????????????????# #??????????????????? | | ?????????????????????????## ##?????????????????? | | ?????????????????????????# #?????????????????? | | ?????????????????????????# T #?????????????????? | | ?????????????????????????# "" #?????????????????? | | ?????????????????????????# #?????????????????? | | ?????????????????????????# #?????????????????? | | ?????????????????????????## ###????????????????? | | ??????????????????##??????# !!#????????????????? | | ????????????????###%####### !!#????????????????? | | ????????????????# # !!#????????????????? | | ????????????????# r Y ###????????????????? | | ????????????????# @# #??????????????????? | | ???????????????#r # #??????????????????? | | ???????????????## # #?????????????????? | | ????????????????# # < ##?????????????????? | | ????????????????# # #??????????????????? | | ????????????????# #####??????????????????? | | ????????????????###########??????????????????????? | | ?????????????????????????????????????????????????? | | ?????????????????????????????????????????????????? | | ?????????????????????????????????????????????????? | | | | | | | | | | | | | | | | | | | | | | | | | | | | | | | +----------------------------------------------------+ Best States ------------- Heat Dissipation 25 Coolant Potential 50 Energy Generation 15 Energy Capacity 200 Matter Stores 300 Matter Capacity 300 Sight Range 21 Terrain Scan Density 10 Evasion (%) 40 Recoil Reduction 1 Item Schematics ----------------- None Robot Schematics ------------------ None Fabricated ------------ Nothing Alien Tech Used ----------------- None Achievements -------------- None Challenges ------------ None Game ------ Seed NavigationFlakDissipator Manual? 0 Play Time 00:14:59 Cumulative 66.7 hours Start 2024.09.01 @ 23:03:48 End 2024.09.01 @ 23:59:29 Sessions 1 Manual Loads 0 Difficulty Rogue Special Mode None Game No. 118 Rogue 118 Adventurer 0 Explorer 0 Win Type - Total 0 Types 0/0/0/0/0/0/0/0/0 Lore% 24 Gallery% 44 Achievement% 37 Wizard Run 0 Options --------- Layout 0 ASCII 0 Keyboard 0 Movement Numpad Keybinds 0 Fullscreen 2 Font 18/SmallcapsGlow Map View 76x50 Zoom Use 0% Tactical HUD 1 Map Filters NONE Filters NONE Steam 1 RUN: c46afc41-793c-4415-a87d-32fdf67cd76c